Cogmind - Beta 11 @@@ ROGUE MODE // 2022.04.07 @ 09:23:24 Player: Virvatuli Result: Destroyed by as-66583 with Assembled F-torch Performance ------------- Evolutions (1) 500 Regions Visited (3) 600 Robots Destroyed (16) 80 Value Destroyed (425) 425 Prototype IDs (0) 0 Alien Tech Used (0) 0 Bonus (0) 0 TOTAL SCORE: 1605 Bonus ------- None Cogmind --------- Core Integrity 0/400 Matter 398/400 Energy 125/125 System Corruption 4% Temperature Cool (20) Movement Core (100) Ox1 Location -9/Mines Parts ------- > --- POWER (1) -------- Light Ion Engine > --- PROPULSION (3) --- (None) > --- UTILITY (3) ------ Heat Sink Medium Matter Pod Melee Analysis Suite > --- WEAPON (2) ------- (None) > --- INVENTORY (5) ---- (None) Peak State ------------ > --- POWER ------------ Ion Engine > --- PROPULSION ------- Aluminum Leg Improved Aluminum Leg Hover Unit > --- UTILITY ---------- Heat Sink Medium Matter Pod > --- WEAPON ----------- Beam Cannon Assault Rifle > --- INVENTORY -------- Hover Unit Heat Sink Heat Sink Melee Analysis Suite [Rating: 9] Favorites ----------- Power Ion Engine Engine Ion Engine Propulsion Wheel Leg Improved Aluminum Leg Wheel Wheel Hover Unit Hover Unit Utility Heat Sink Device Heat Sink Storage Medium Matter Pod Processor Melee Analysis Suite Weapon Beam Cannon Energy Gun EM Pulse Gun Energy Cannon Beam Cannon Ballistic Gun Assault Rifle Ballistic Cannon Light Cannon Launcher Grenade Launcher Build | -11 -10 -9 -9 ------- Run | Scr Mat Mat Min Slots Evolved 2 | . . 2 . Power . | . . . . Propulsion 1 | . . 1 . Utility 1 | . . 1 . Weapon . | . . . . Parts Attached 35 | 8 11 11 5 Power 5 | 2 . 2 1 Engine 5 | 2 . 2 1 Core . | . . . . Reactor . | . . . . Propulsion 7 | 2 . 5 . Treads . | . . . . Leg 2 | . . 2 . Wheel 2 | 2 . . . Hover 3 | . . 3 . Flight . | . . . . Utility 14 | 1 6 4 3 Device 8 | . 4 3 1 Storage 4 | 1 2 . 1 Processor 2 | . . 1 1 Hackware . | . . . . Protection . | . . . . Artifact . | . . . . Weapon 9 | 3 5 . 1 Energy Gun 2 | 1 1 . . Energy Cannon 1 | . 1 . . Ballistic Gun 4 | 2 2 . . Ballistic Cannon 1 | . 1 . . Launcher 1 | . . . 1 Special Weapon . | . . . . Impact Weapon . | . . . . Slashing Weapon . | . . . . Piercing Weapon . | . . . . Special Melee Weapon . | . . . . Unidentified Prototypes . | . . . . Parts Lost 4 | . . 1 3 Power . | . . . . Propulsion 2 | . . 1 1 Utility 1 | . . . 1 Weapon 1 | . . . 1 Highest Loss Streak 3 | . . 1 3 To Critical Strikes . | . . . . Average Slot Usage (%) 79 | . 99 74 43 Engine 11 | . 14 11 8 Leg 2 | . . 6 . Wheel 14 | . 28 6 . Hover 3 | . . 4 6 Device 15 | . 19 13 10 Storage 8 | . 7 10 5 Processor 1 | . . . 8 Energy Gun 4 | . 10 . . Energy Cannon 6 | . 3 11 2 Ballistic Gun 6 | . 4 11 1 Ballistic Cannon 4 | . 9 . . Naked Turns 40 | . . . 40 Heaviest Build 91 | 13 91 14 11 Greatest Support 23 | 20 20 23 18 Greatest Overweight (x) 4 | . 4 4 1 Average Overweight (x) . | . . . . Largest Inventory Capacity 25 | 8 25 5 5 Average Capacity 7 | 6 10 5 5 Most Carried 5 | 4 5 5 5 Average Carried 2 | . 1 2 2 Final Capacity 8 | 8 5 5 5 Final Carried 4 | . 2 4 . Class Distribution -------------------- 82% | Mutant 17% | Scavenger-Mutant Dominant Class ---------------- Mutant | -10/Materials Mutant | -9/Materials Mutant | -9/Mines Resources | -11 -10 -9 -9 ----------- Run | Scr Mat Mat Min Matter Collected 705 | 194 191 301 19 Remotely 110 | . 110 . . Salvage Created 567 | . 240 301 26 Parts 42 | . 12 25 5 Haulers Intercepted . | . . . . Recyclers Shooed 3 | . . 1 2 Parts Field Recycled . | . . . . Retrieved Matter . | . . . . Parts Self-Destructed . | . . . . Prevented . | . . . . Kills | -11 -10 -9 -9 ------- Run | Scr Mat Mat Min Combat Hostiles Destroyed 10 | . 6 4 . Guns 4 | . 2 2 . Cannons 6 | . 4 2 . Classes Destroyed 6 | . 1 4 1 Worker 1 | . . . 1 Builder 2 | . . 1 1 Recycler 1 | . . 1 . Watcher 2 | . . 2 . Grunt 9 | . 6 3 . Duelist 1 | . . 1 . Best Kill Streak 4 | . 4 2 2 Combat Bots Only 4 | . 4 2 . Max Kills in Single Turn 2 | . 1 1 2 Gunslinging . | . . . . Exploded . | . . . . Melee . | . . . . Uniques/NPCs Destroyed . | . . . . Combat | -11 -10 -9 -9 -------- Run | Scr Mat Mat Min Damage Taken 962 | . 106 371 485 Core 403 | . . 135 268 Absorbed by Shields . | . . . . Core Remaining (%) 100 | 100 100 . . Volleys Fired 44 | . 11 31 2 Largest 2 | . 2 2 2 Hottest 90 | . 80 80 90 Shots Fired 88 | . 22 62 4 Gun 42 | . 11 31 . Cannon 44 | . 11 31 2 Launcher 2 | . . . 2 Special . | . . . . Kinetic 42 | . 11 31 . Thermal 34 | . 1 31 2 Explosive 2 | . . . 2 Electromagnetic 10 | . 10 . . Robot Hit Streak 9 | . 2 9 1 Robot Miss Streak 5 | . 2 5 1 Penetration Max . | . . . . Secondary Targets . | . . . . Shots Hit Robots 45 | . 10 34 1 Core Hits 31 | . 9 12 10 Critical Kills . | . . . . Critical Parts Destroyed . | . . . . Critical Strikes . | . . . . Melee Attacks . | . . . . Impact . | . . . . Slashing . | . . . . Piercing . | . . . . Sneak Attacks . | . . . . Combat Hostiles . | . . . . Follow-up Attacks . | . . . . Damage Inflicted 979 | . 185 565 229 Guns 325 | . 77 248 . Cannons 425 | . 108 317 . Explosions 187 | . . . 187 Melee . | . . . . Ramming 42 | . . . 42 Kinetic 356 | . 108 248 . Thermal 317 | . . 317 . Explosive 187 | . . . 187 Electromagnetic 77 | . 77 . . Impact . | . . . . Slashing . | . . . . Piercing . | . . . . Highest Corruption 4 | . . . 4 Average Corruption 1 | . . . 1 Corruption Purged . | . . . . Corruption Blocked . | . . . . Effects 1 | . . . 1 Matter Fused 1 | . . . 1 Overload Shots . | . . . . Overflow Damage . | . . . . Projectiles . | . . . . Explosions . | . . . . Melee . | . . . . Knockbacks 1 | . 1 . . Impact . | . . . . Kinetic 1 | . 1 . . Secondary . | . . . . Self-Inflicted Damage 15 | . . . 15 Shots . | . . . . Rammed 25 | . . . 25 Targets Rammed 25 | . . . 25 Kicked . | . . . . Crushed . | . . . . Highest Temperature 57 | . 57 5 3 Average Temperature 15 | . 21 5 2 Received Heat Transfer 378 | . 60 138 180 Siege Activations . | . . . . Robots Corrupted . | . . . . Combat Hostiles . | . . . . Parts Fried . | . . . . Impact Corruptions . | . . . . Robots Melted . | . . . . Combat Hostiles . | . . . . Parts Melted 2 | . . 2 . Heat Transferred 666 | . . 666 . Parts Sabotaged . | . . . . Parts Stolen . | . . . . Parts Stripped . | . . . . Power Chain Reactions . | . . . . Missiles Intercepted . | . . . . Alert | -11 -10 -9 -9 ------- Run | Scr Mat Mat Min Peak Influence 205 | . 170 205 152 Initial 79 | . . 71 79 Average 106 | . 86 139 131 Maximum Alert Level 1 | . . 1 . Low Security (%) 96 | 100 100 90 100 Level 1 3 | . . 9 . Level 2 . | . . . . Level 3 . | . . . . Level 4 . | . . . . Level 5 . | . . . . High Security . | . . . . Max Security . | . . . . Squads Dispatched 1 | . 1 . . Investigation . | . . . . Extermination . | . . . . Reinforcement 1 | . 1 . . Assault . | . . . . Garrison . | . . . . Intercept . | . . . . Searches Triggered . | . . . . Construction Impeded . | . . . . Haulers Reinforced . | . . . . Active Scanning Responses . | . . . . Cargo Convoy Interrupts . | . . . . Stealth | -11 -10 -9 -9 --------- Run | Scr Mat Mat Min Distress Signals 2 | . . 2 . Communications Jammed . | . . . . Distress Signals . | . . . . Times Spotted 26 | . 9 10 7 Peak Tracking Total 4 | . 4 4 3 Tactical Retreats 3 | . . 1 2 Traps | -11 -10 -9 -9 ------- Run | Scr Mat Mat Min Traps Triggered . | . . . . Indirectly . | . . . . Trap Hack Attempts . | . . . . Triggered . | . . . . Disarmed . | . . . . Reprogrammed . | . . . . Reused . | . . . . Traps Extracted . | . . . . Installed . | . . . . Triggered . | . . . . Machines | -11 -10 -9 -9 ---------- Run | Scr Mat Mat Min Machines Disabled 1 | . . 1 . Max in Single Turn 1 | . . 1 . Machines Sabotaged . | . . . . Garrisons Compromised . | . . . . Overloaded Fab Kills . | . . . . Hacking | -11 -10 -9 -9 --------- Run | Scr Mat Mat Min Machines Accessed 3 | . 1 2 . Terminals 1 | . . 1 . Fabricators . | . . . . Repair Stations . | . . . . Recycling Units 1 | . 1 . . Scanalyzers 1 | . . 1 . Garrison Access . | . . . . Total Hacks 6 | . 3 3 . Successful 5 | . 2 3 . Failed 1 | . 1 . . Catastrophic . | . . . . Database Lockouts . | . . . . Manual . | . . . . Terminals 1 | . . 1 . Fabricators . | . . . . Repair Stations . | . . . . Recycling Units 3 | . 3 . . Scanalyzers 2 | . . 2 . Garrison Access . | . . . . Terminal Hacks 1 | . . 1 . Zone Layout 1 | . . 1 . Fabricator Hacks . | . . . . Repair Station Hacks . | . . . . Recycling Unit Hacks 2 | . 2 . . Process 1 | . 1 . . Report Inventory 1 | . 1 . . Scanalyzer 2 | . . 2 . Insert Component 1 | . . 1 . Analyze 1 | . . 1 . Garrison Access Hacks . | . . . . Unauthorized Hacks . | . . . . Terminals . | . . . . Fabricators . | . . . . Repair Stations . | . . . . Recycling Units . | . . . . Scanalyzers . | . . . . Garrison Access . | . . . . Data Cores Recovered . | . . . . Used . | . . . . Hacking Detections 1 | . 1 . . Full Trace Events 1 | . 1 . . Feedback Events . | . . . . Feedback Blocked . | . . . . Robot Schematics Acquired . | . . . . Robots Built . | . . . . Authchips . | . . . . Time . | . . . . Total Robot Build Rating . | . . . . Part Schematics Acquired 1 | . . 1 . Parts Built . | . . . . Authchips . | . . . . Time . | . . . . Total Part Build Rating . | . . . . Parts Repaired . | . . . . Time . | . . . . Parts Recycled . | . . . . Recycled Matter 31 | . 31 . . Retrieved Matter . | . . . . Retrieved Components . | . . . . Parts Scanalyzed 1 | . . 1 . Part Schematics Acquired 1 | . . 1 . Parts Damaged . | . . . . Bothacking | -11 -10 -9 -9 ------------ Run | Scr Mat Mat Min Used RIF Installer . | . . . . Robots Hacked . | . . . . Non-combat . | . . . . Combat . | . . . . Robot Hacks Applied . | . . . . Relay Couplers Released . | . . . . Fabnet Peak Effective % . | . . . . Robots Rewired . | . . . . Allies Hacked . | . . . . Hacks Repelled . | . . . . Allies | -11 -10 -9 -9 -------- Run | Scr Mat Mat Min Total Allies . | . . . . Largest Group . | . . . . Highest-Rated Group . | . . . . Highest-Rated Ally . | . . . . Total Orders . | . . . . Ally Attacks . | . . . . Total Damage . | . . . . Kills . | . . . . Allies Corrupted . | . . . . Allies Melted . | . . . . Intel | -11 -10 -9 -9 ------- Run | Scr Mat Mat Min Robot Analysis Total . | . . . . Derelict Logs Recovered 1 | . . . 1 Drone Launches . | . . . . Drone Recoveries . | . . . . Exploration | -11 -10 -9 -9 ------------- Run | Scr Mat Mat Min Turns Passed 810 | 56 342 262 150 Spaces Moved 665 | 53 304 152 156 Core 127 | 6 . 10 111 Treads . | . . . . Legs 28 | . . 28 . Wheels 427 | 47 304 76 . Hover 83 | . . 38 45 Flight . | . . . . Fastest Speed 50 | 50 80 52 50 Average Speed 84 | 76 91 93 64 Slowest Speed 250 | 80 140 250 100 Overloaded Moves . | . . . . Propulsion Burnouts . | . . . . Robots Hopped . | . . . . Cave-ins Triggered . | . . . . Exploration Rate (%) 21 | 4 40 19 21 Regions Visited 3 Branch Regions 1 Pre-discovered Areas . | . . . . Known Exits Taken 1 | . . 1 . Unknown Exits Taken 2 | 1 1 . . Scrap Searched 1 | . . . 1 Spaces Dug 11 | . . . 11 Terrain Destroyed 24 | . . . 24 Melee . | . . . . Projectile . | . . . . AOE 24 | . . . 24 Terrain Rammed . | . . . . Walls Destroyed . | . . . . Machines Disabled . | . . . . Actions | -11 -10 -9 -9 --------- Run | Scr Mat Mat Min Total 823 | 67 345 209 202 Wait 13 | . 1 . 12 Move 662 | 52 303 151 156 Hop . | . . . . Pick Up 29 | 6 11 11 1 Fast Attach 1 | 1 . . . Attach 18 | 5 2 7 4 Detach . | . . . . Swap 16 | 2 9 4 1 Drop 15 | 1 8 5 1 Fire 44 | . 11 31 2 Melee . | . . . . Ram 25 | . . . 25 Kick . | . . . . Crush . | . . . . Escape Stasis . | . . . . Rewire . | . . . . Trap . | . . . . Miscellaneous . | . . . . Route ------- -11/Scrapyard -10/Materials -9/Materials -9/Mines History --------- Turn | Location | Event 12 | -11/Scrapyard | Discovered new exit (range 15) 57 | -11/Scrapyard | Entered Materials 329 | -10/Materials | Build established: Mutant 343 | -10/Materials | Discovered new exit (range 7) 399 | -10/Materials | Entered another Materials area 399 | -9/Materials | Evolved 2 slots: Propulsion x1, Utility x1 651 | -9/Materials | Discovered new exit (range 10) 660 | -9/Materials | Identified exit to Mines 661 | -9/Materials | Entered Mines 681 | -9/Mines | Assembled infested the area 694 | -9/Mines | Released all parts (6) 696 | -9/Mines | Core integrity fell below 50% 701 | -9/Mines | Learned Materials security intel 724 | -9/Mines | Lost 3 parts (1n1u1w) 776 | -9/Mines | Core integrity fell below 20% 811 | -9/Mines | Destroyed by as-66583 with Assembled F-torch Last Messages --------------- 00782_ YI-UF0 mumbles something. 00785_ Slammed into as-66583. 00785_ Heat Sink broken. 00785_ Destabilizing: Short circuit. 00786_ Slammed into as-66583. 00789_ T-07 Excavator destroyed. 00789_ Slammed into as-66583. 00792_ Melee Analysis Suite broken. 00792_ Destabilizing: Short circuit. 00793_ Slammed into as-66583. 00796_ Destabilizing: System corrupted (+1). 00797_ Slammed into as-66583. 00799_ System corrupted: Matter fused (-9). 00799_ Slammed into as-66583. 00803_ Destabilizing: Core damaged (-12). 00806_ Slammed into as-66583. 00806_ Destabilizing: System corrupted (+2). 00807_ Slammed into as-66583. 00807_ Destabilizing: System corrupted (+1). 00808_ Slammed into as-66583. Map ----- +----------------------------------------------------+ | ???# # #????????????????????? | | ??## #????????????????????? | | ??# #!= #??#?????????????????? | | ???# % #? #?????????????????? | | ???? * ## #?????????????????? | | ??#### ??????????????????? | | ?## ! # ###?????????????????? | | ?# #?????????????????? | | ?#### ####??????????????? | | ?# # #????# ???????? | | ?# # ##### ##?????? | | ?# * ##????? | | ?## ## ## ##???? | | ??# ## ## ##??? | | ??# # #### #?# #??? | | ??# ######??# #?? ##?? | | ??## ###????# #? # # #?? | | ???## ##???# # # #? | | ????## #??## # ## | | ?????## #### | | ??????## | | ???????# | | ??????## | | ????### # | | ???## # ### | | ???# @a### %* ####?? | | ???# #?# = #?????? | | ???## ##?## ##?????? | | ????####???## # ### #??????? | | ????????????####?#?## ##??????? | | ????????????????????###???????? | | ??????????????????????????????? | | ??????????????????????????????? | | | | | | | | | | | | | | | | | | | | | | | | | | | | | | | | | | | +----------------------------------------------------+ Best States ------------- Heat Dissipation 48 Energy Generation 10 Energy Capacity 250 Matter Stores 393 Matter Capacity 400 Sight Range 16 Robot Scan Range 14 Terrain Scan Density 10 Evasion (%) 54 Melee Accuracy 5 Item Schematics ----------------- Ion Engine | -9/Materials | Scanalyzed Robot Schematics ------------------ None Fabricated ------------ Nothing Alien Tech Used ----------------- None Achievements -------------- Use The Force Challenges ------------ None Game ------ Seed HybridSapperTriangulator Manual? 0 Play Time 00:23:32 Cumulative 8.0 hours Start 2022.04.06 @ 16:46:12 End 2022.04.07 @ 09:23:24 Sessions 1 Manual Loads 0 Difficulty Rogue Special Mode None Game No. 15 Rogue 15 Adventurer 0 Explorer 0 Win Type - Total 0 Types 0/0/0/0/0/0/0/0/0 Lore% 11 Gallery% 17 Achievement% 14 Wizard Run 0 Options --------- ASCII 0 Keyboard 0 Movement Mouse Keybinds 0 Fullscreen 2 Font 18/SmallcapsGlow Map View 76x50 Tactical HUD 1 Map Filters NONE Filters NONE Steam 1 RUN: 0dc432bb-1c68-46ae-8b7b-a97fc9e802f6